[Event "Early-Titled-Tuesday-Blitz-February-20-2024"]
[Site "Chess.com"]
[Date "2024.02.20"]
[Round "3"]
[White "CFN_Good_Evening"]
[Black "BardArtem"]
[Result "1/2-1/2"]
[WhiteElo "2216"]
[BlackElo "2776"]
[TimeControl "180+1"]
[EndTime "8:30:55 PST"]
[Termination "Game drawn by repetition"]

1. e4 {[%clk 0:02:34.7]} 1... e5 {[%clk 0:02:57.9]} 2. Nf3 {[%clk 0:02:34.5]}
2... Nc6 {[%clk 0:02:58.4]} 3. Bb5 {[%clk 0:02:34.7]} 3... Nge7 {[%clk
0:02:58.8]} 4. O-O {[%clk 0:02:32]} 4... Ng6 {[%clk 0:02:58.5]} 5. c3 {[%clk
0:02:26.9]} 5... d5 {[%clk 0:02:57.6]} 6. d4 {[%clk 0:02:16.6]} 6... dxe4 {[%clk
0:02:55.3]} 7. Bxc6+ {[%clk 0:02:01.9]} 7... bxc6 {[%clk 0:02:54.9]} 8. Nxe5
{[%clk 0:02:02.8]} 8... Bd6 {[%clk 0:02:47.1]} 9. f4 {[%clk 0:01:52.9]} 9...
exf3 {[%clk 0:02:39.6]} 10. Nxf3 {[%clk 0:01:51]} 10... O-O {[%clk 0:02:39.7]}
11. Bg5 {[%clk 0:01:49.7]} 11... f6 {[%clk 0:02:38.8]} 12. Bd2 {[%clk
0:01:43.9]} 12... Rb8 {[%clk 0:02:38.7]} 13. Qc2 {[%clk 0:01:42.1]} 13... Ba6
{[%clk 0:02:34.6]} 14. Re1 {[%clk 0:01:39.5]} 14... c5 {[%clk 0:02:34.3]} 15.
Be3 {[%clk 0:01:29.7]} 15... cxd4 {[%clk 0:02:31.1]} 16. Bxd4 {[%clk 0:01:29.1]}
16... Bb7 {[%clk 0:02:31.3]} 17. Nbd2 {[%clk 0:01:28.9]} 17... Qd7 {[%clk
0:02:31]} 18. Bxa7 {[%clk 0:01:27.4]} 18... Ra8 {[%clk 0:02:30]} 19. Qb3+ {[%clk
0:01:27.5]} 19... Bd5 {[%clk 0:01:31.9]} 20. Qxd5+ {[%clk 0:01:27.2]} 20... Kh8
{[%clk 0:01:32.6]} 21. Qb7 {[%clk 0:01:22.6]} 21... Nf4 {[%clk 0:01:14.6]} 22.
Be3 {[%clk 0:01:22.6]} 22... Nd3 {[%clk 0:01:11.4]} 23. Qe4 {[%clk 0:01:15]}
23... Nxe1 {[%clk 0:01:09.9]} 24. Rxe1 {[%clk 0:01:15.9]} 24... Rxa2 {[%clk
0:01:04.7]} 25. Nc4 {[%clk 0:01:08.5]} 25... Re8 {[%clk 0:00:53.3]} 26. Qb1
{[%clk 0:01:08.4]} 26... Raa8 {[%clk 0:00:51.1]} 27. Nxd6 {[%clk 0:01:05.6]}
27... Qxd6 {[%clk 0:00:52]} 28. Bd4 {[%clk 0:01:03.8]} 28... c5 {[%clk
0:00:46.6]} 29. Bf2 {[%clk 0:01:00.1]} 29... Qd5 {[%clk 0:00:41.9]} 30. b4
{[%clk 0:00:56.8]} 30... cxb4 {[%clk 0:00:41.7]} 31. cxb4 {[%clk 0:00:57.7]}
31... Rxe1+ {[%clk 0:00:40.4]} 32. Qxe1 {[%clk 0:00:55.5]} 32... h6 {[%clk
0:00:39.4]} 33. h3 {[%clk 0:00:54.9]} 33... Rb8 {[%clk 0:00:35.5]} 34. Bc5
{[%clk 0:00:51.2]} 34... Rd8 {[%clk 0:00:32.8]} 35. Kh2 {[%clk 0:00:50.6]} 35...
Qc6 {[%clk 0:00:32.7]} 36. Qg3 {[%clk 0:00:50.4]} 36... Qd5 {[%clk 0:00:30.3]}
37. Nh4 {[%clk 0:00:50.7]} 37... Qc4 {[%clk 0:00:12.9]} 38. Ng6+ {[%clk
0:00:50.3]} 38... Kh7 {[%clk 0:00:13.1]} 39. Nf8+ {[%clk 0:00:47.5]} 39... Kg8
{[%clk 0:00:13.2]} 40. Ng6 {[%clk 0:00:47.2]} 40... Kh7 {[%clk 0:00:13.7]} 41.
Ne7 {[%clk 0:00:45.9]} 41... Qd3 {[%clk 0:00:05.9]} 42. Qxd3+ {[%clk 0:00:45.3]}
42... Rxd3 {[%clk 0:00:06.8]} 43. b5 {[%clk 0:00:43.9]} 43... Rb3 {[%clk
0:00:07.2]} 44. b6 {[%clk 0:00:43.9]} 44... g5 {[%clk 0:00:03.9]} 45. Bd4 {[%clk
0:00:40]} 45... Kg7 {[%clk 0:00:02.6]} 46. Nd5 {[%clk 0:00:40.3]} 46... Rd3
{[%clk 0:00:01.8]} 47. Bxf6+ {[%clk 0:00:39.6]} 47... Kf7 {[%clk 0:00:02]} 48.
b7 {[%clk 0:00:40.5]} 48... Rb3 {[%clk 0:00:02.4]} 49. Be5 {[%clk 0:00:40.5]}
49... Rxb7 {[%clk 0:00:02.9]} 50. Ne3 {[%clk 0:00:40.3]} 50... Ke6 {[%clk
0:00:02.9]} 51. Bg3 {[%clk 0:00:39.5]} 51... Kf7 {[%clk 0:00:03.6]} 52. Ng4
{[%clk 0:00:39.5]} 52... Kg6 {[%clk 0:00:03.9]} 53. Ne5+ {[%clk 0:00:39.2]}
53... Kf5 {[%clk 0:00:04.4]} 54. Nf3 {[%clk 0:00:38.1]} 54... h5 {[%clk
0:00:04.9]} 55. h4 {[%clk 0:00:34.2]} 55... gxh4 {[%clk 0:00:04.4]} 56. Nxh4+
{[%clk 0:00:34.2]} 56... Kg4 {[%clk 0:00:05]} 57. Nf3 {[%clk 0:00:33.6]} 57...
Kf5 {[%clk 0:00:05.6]} 58. Kh3 {[%clk 0:00:33.2]} 58... Kg6 {[%clk 0:00:05.1]}
59. Nh4+ {[%clk 0:00:32.3]} 59... Kg5 {[%clk 0:00:04.9]} 60. Bf2 {[%clk
0:00:30.8]} 60... Rb3+ {[%clk 0:00:04.4]} 61. g3 {[%clk 0:00:31.1]} 61... Rb1
{[%clk 0:00:04.1]} 62. Be3+ {[%clk 0:00:31.1]} 62... Kf6 {[%clk 0:00:04.1]} 63.
Bf4 {[%clk 0:00:30.8]} 63... Rh1+ {[%clk 0:00:04.1]} 64. Kg2 {[%clk 0:00:31.1]}
64... Rb1 {[%clk 0:00:04.9]} 65. Nf3 {[%clk 0:00:29.9]} 65... Kf5 {[%clk
0:00:05.4]} 66. Kh3 {[%clk 0:00:28.3]} 66... Rb7 {[%clk 0:00:05.4]} 67. Kh4
{[%clk 0:00:26.8]} 67... Rh7 {[%clk 0:00:05.2]} 68. Ng5 {[%clk 0:00:25.9]} 68...
Rh8 {[%clk 0:00:05.5]} 69. Nf7 {[%clk 0:00:25.9]} 69... Rh7 {[%clk 0:00:05.2]}
70. Nd6+ {[%clk 0:00:26.3]} 70... Ke6 {[%clk 0:00:05.1]} 71. Ne4 {[%clk
0:00:26.8]} 71... Kf5 {[%clk 0:00:05.5]} 72. Ng5 {[%clk 0:00:27.4]} 72... Rh8
{[%clk 0:00:05.9]} 73. Nf3 {[%clk 0:00:27.7]} 73... Rh7 {[%clk 0:00:03.9]} 74.
Nd4+ {[%clk 0:00:27.6]} 74... Kg6 {[%clk 0:00:04.6]} 75. Bg5 {[%clk 0:00:25]}
75... Rb7 {[%clk 0:00:04.5]} 76. Bf4 {[%clk 0:00:22.8]} 76... Rb1 {[%clk
0:00:04.1]} 77. Kh3 {[%clk 0:00:21]} 77... Rh1+ {[%clk 0:00:04.6]} 78. Kg2
{[%clk 0:00:21.4]} 78... Rd1 {[%clk 0:00:05.5]} 79. Nf3 {[%clk 0:00:21.7]} 79...
Rb1 {[%clk 0:00:05.8]} 80. Be3 {[%clk 0:00:20.6]} 80... Rb2+ {[%clk 0:00:05.2]}
81. Kh3 {[%clk 0:00:20.6]} 81... Rb1 {[%clk 0:00:06.1]} 82. Nh4+ {[%clk
0:00:20]} 82... Kf6 {[%clk 0:00:06.1]} 83. Bf4 {[%clk 0:00:20.3]} 83... Ke6
{[%clk 0:00:04.9]} 84. Ng2 {[%clk 0:00:20.7]} 84... Kf6 {[%clk 0:00:04.8]} 85.
Be3 {[%clk 0:00:20.5]} 85... Kg6 {[%clk 0:00:05.1]} 86. Nf4+ {[%clk 0:00:20.9]}
86... Kg5 {[%clk 0:00:04.1]} 87. Ng2+ {[%clk 0:00:20.8]} 87... Kg6 {[%clk
0:00:04.5]} 88. Nh4+ {[%clk 0:00:20.7]} 88... Kf6 {[%clk 0:00:04.6]} 1/2-1/2

[Event "Early-Titled-Tuesday-Blitz-February-20-2024"]
[Site "Chess.com"]
[Date "2024.02.20"]
[Round "3"]
[White "LyonBeast"]
[Black "CSB7"]
[Result "1-0"]
[WhiteElo "3186"]
[BlackElo "2779"]
[TimeControl "180+1"]
[EndTime "8:30:57 PST"]
[Termination "LyonBeast won by resignation"]

1. e4 {[%clk 0:02:57.2]} 1... e5 {[%clk 0:03:00.5]} 2. Nf3 {[%clk 0:02:57.2]}
2... Nc6 {[%clk 0:03:01.2]} 3. Bb5 {[%clk 0:02:57.1]} 3... Nf6 {[%clk 0:03:00]}
4. O-O {[%clk 0:02:54.6]} 4... Nxe4 {[%clk 0:02:59.9]} 5. Re1 {[%clk 0:02:55.4]}
5... Nd6 {[%clk 0:02:59.6]} 6. Nxe5 {[%clk 0:02:56.1]} 6... Be7 {[%clk
0:02:59.7]} 7. Bf1 {[%clk 0:02:56.8]} 7... Nxe5 {[%clk 0:02:58.8]} 8. Rxe5
{[%clk 0:02:57.7]} 8... O-O {[%clk 0:02:58.9]} 9. d4 {[%clk 0:02:57.6]} 9... Bf6
{[%clk 0:02:57.9]} 10. Re2 {[%clk 0:02:58.4]} 10... Nc4 {[%clk 0:02:57.1]} 11.
b3 {[%clk 0:02:56.6]} 11... Nb6 {[%clk 0:02:56.7]} 12. Qd3 {[%clk 0:02:54.4]}
12... d5 {[%clk 0:02:52.1]} 13. Bf4 {[%clk 0:02:52.4]} 13... Bg4 {[%clk
0:02:37.5]} 14. Re1 {[%clk 0:02:52.4]} 14... Bh5 {[%clk 0:02:31.4]} 15. c3
{[%clk 0:02:35.4]} 15... Qd7 {[%clk 0:02:15.4]} 16. Nd2 {[%clk 0:02:32.2]} 16...
Rae8 {[%clk 0:02:02.3]} 17. Qg3 {[%clk 0:02:29.7]} 17... c6 {[%clk 0:01:53.9]}
18. Be5 {[%clk 0:02:18.9]} 18... Bxe5 {[%clk 0:01:30.2]} 19. dxe5 {[%clk
0:02:19.8]} 19... f6 {[%clk 0:01:24.8]} 20. exf6 {[%clk 0:02:13.2]} 20... Rxf6
{[%clk 0:01:23.6]} 21. Bd3 {[%clk 0:02:02]} 21... Bg6 {[%clk 0:01:19.9]} 22.
Bxg6 {[%clk 0:01:55.4]} 22... Rxg6 {[%clk 0:01:17.1]} 23. Qd3 {[%clk 0:01:52]}
23... Rge6 {[%clk 0:01:07]} 24. Rxe6 {[%clk 0:01:51.9]} 24... Qxe6 {[%clk
0:01:07.9]} 25. Nf3 {[%clk 0:01:49.5]} 25... Nc8 {[%clk 0:00:59.7]} 26. h4
{[%clk 0:01:41.7]} 26... Nd6 {[%clk 0:00:56.2]} 27. Re1 {[%clk 0:01:40.6]} 27...
Qh6 {[%clk 0:00:31]} 28. Rxe8+ {[%clk 0:01:37.7]} 28... Nxe8 {[%clk 0:00:31.9]}
29. Qf5 {[%clk 0:01:21.4]} 29... Qf6 {[%clk 0:00:21.4]} 30. Qc8 {[%clk
0:01:16.9]} 30... Qe7 {[%clk 0:00:20.7]} 31. h5 {[%clk 0:01:07.5]} 31... h6
{[%clk 0:00:20]} 32. g3 {[%clk 0:00:57.8]} 32... Kh7 {[%clk 0:00:17.1]} 33. Qf5+
{[%clk 0:00:57.9]} 33... Kg8 {[%clk 0:00:15.7]} 34. Qc8 {[%clk 0:00:41.6]} 34...
Kh7 {[%clk 0:00:15.1]} 35. Qf5+ {[%clk 0:00:40.5]} 35... Kg8 {[%clk 0:00:14.6]}
36. Nd4 {[%clk 0:00:35.6]} 36... Nf6 {[%clk 0:00:12.1]} 37. Ne6 {[%clk
0:00:33.5]} 37... Nxh5 {[%clk 0:00:08.6]} 38. c4 {[%clk 0:00:26]} 38... dxc4
{[%clk 0:00:07.7]} 39. bxc4 {[%clk 0:00:26.9]} 39... Nf6 {[%clk 0:00:08.2]} 40.
Kh2 {[%clk 0:00:22.9]} 40... Qd7 {[%clk 0:00:06.3]} 41. Qh3 {[%clk 0:00:16.6]}
41... Qd2 {[%clk 0:00:04.3]} 42. Qf5 {[%clk 0:00:15.4]} 42... Qxa2 {[%clk
0:00:03.3]} 43. c5 {[%clk 0:00:14.5]} 43... Qd5 {[%clk 0:00:02.8]} 44. Qh3
{[%clk 0:00:13.1]} 44... Qe5 {[%clk 0:00:02.6]} 45. Nf4 {[%clk 0:00:12.9]} 45...
Qd4 {[%clk 0:00:02.5]} 46. Qe6+ {[%clk 0:00:12.7]} 46... Kh7 {[%clk 0:00:02.9]}
47. Qf5+ {[%clk 0:00:13.1]} 47... Kg8 {[%clk 0:00:03.5]} 48. Kg1 {[%clk
0:00:09.9]} 48... Qd7 {[%clk 0:00:02.7]} 49. Qe5 {[%clk 0:00:09.4]} 49... Qf7
{[%clk 0:00:02.7]} 50. Qb8+ {[%clk 0:00:09.5]} 50... Kh7 {[%clk 0:00:02.9]} 51.
Qxa7 {[%clk 0:00:10.2]} 51... Nd5 {[%clk 0:00:03.2]} 52. Nd3 {[%clk 0:00:10]}
52... Qf5 {[%clk 0:00:02.4]} 53. Ne1 {[%clk 0:00:09.5]} 53... Qe4 {[%clk
0:00:02.5]} 54. Qa5 {[%clk 0:00:08.8]} 54... Nf6 {[%clk 0:00:02]} 55. Qd2 {[%clk
0:00:08.2]} 55... Qd5 {[%clk 0:00:02.1]} 56. Qc2+ {[%clk 0:00:08]} 56... Qe4
{[%clk 0:00:02.5]} 57. Qc3 {[%clk 0:00:08]} 57... Nd5 {[%clk 0:00:02]} 58. Qd2
{[%clk 0:00:08.6]} 58... Qe6 {[%clk 0:00:02.5]} 59. Nf3 {[%clk 0:00:08.2]} 59...
Kg8 {[%clk 0:00:03.1]} 60. Qd3 {[%clk 0:00:07.8]} 60... Qf6 {[%clk 0:00:03]} 61.
Kg2 {[%clk 0:00:07.7]} 61... Qe7 {[%clk 0:00:03.5]} 62. Qd4 {[%clk 0:00:06.8]}
62... Qf6 {[%clk 0:00:03.9]} 63. Qa4 {[%clk 0:00:05]} 63... Qf7 {[%clk
0:00:03.6]} 64. Qa8+ {[%clk 0:00:04.8]} 64... Kh7 {[%clk 0:00:03.7]} 65. Qc8
{[%clk 0:00:05.4]} 65... Nf6 {[%clk 0:00:03.5]} 66. Ne5 {[%clk 0:00:05.3]} 66...
Qd5+ {[%clk 0:00:03.9]} 67. Nf3 {[%clk 0:00:05.1]} 67... Ne4 {[%clk 0:00:04.3]}
68. Kh2 {[%clk 0:00:03.8]} 68... Nxc5 {[%clk 0:00:04.3]} 69. Nh4 {[%clk
0:00:04]} 69... Qe6 {[%clk 0:00:03.9]} 70. Qf8 {[%clk 0:00:03.5]} 70... Qf6
{[%clk 0:00:03.8]} 71. Qxc5 {[%clk 0:00:03.6]} 71... g6 {[%clk 0:00:02.3]} 72.
Ng2 {[%clk 0:00:03.7]} 72... g5 {[%clk 0:00:02.5]} 73. Qc2+ {[%clk 0:00:03.5]}
73... Kg7 {[%clk 0:00:02.9]} 74. Ne3 {[%clk 0:00:03.6]} 74... c5 {[%clk
0:00:01.7]} 75. Nf5+ {[%clk 0:00:04.1]} 75... Kg8 {[%clk 0:00:01.6]} 76. g4
{[%clk 0:00:04.7]} 76... Qe5+ {[%clk 0:00:01.7]} 77. Kg2 {[%clk 0:00:05.3]}
77... Qd5+ {[%clk 0:00:02.2]} 78. f3 {[%clk 0:00:06]} 78... Qe5 {[%clk
0:00:02.3]} 79. Nxh6+ {[%clk 0:00:05]} 79... Kf8 {[%clk 0:00:02.2]} 80. Nf5
{[%clk 0:00:05.9]} 80... Ke8 {[%clk 0:00:02.4]} 81. Qd2 {[%clk 0:00:06.3]} 81...
b5 {[%clk 0:00:02]} 82. Nd6+ {[%clk 0:00:05.7]} 82... Kf8 {[%clk 0:00:02.4]} 83.
Nxb5 {[%clk 0:00:06.3]} 83... c4 {[%clk 0:00:02.9]} 84. Nc3 {[%clk 0:00:06.8]}
84... Qc5 {[%clk 0:00:01.9]} 85. Ne4 {[%clk 0:00:07.2]} 85... Qe5 {[%clk
0:00:01.9]} 86. Qc3 {[%clk 0:00:07.4]} 86... Qd5 {[%clk 0:00:02]} 87. Qh8+
{[%clk 0:00:07.3]} 87... Ke7 {[%clk 0:00:02.1]} 88. Qg7+ {[%clk 0:00:07.6]}
88... Kd8 {[%clk 0:00:02]} 89. Qxg5+ {[%clk 0:00:07.8]} 89... Qxg5 {[%clk
0:00:01.9]} 90. Nxg5 {[%clk 0:00:08.7]} 90... c3 {[%clk 0:00:02.6]} 91. Ne6+
{[%clk 0:00:09.4]} 91... Ke7 {[%clk 0:00:03.5]} 92. Nd4 {[%clk 0:00:10.1]} 1-0

[Event "Early-Titled-Tuesday-Blitz-February-20-2024"]
[Site "Chess.com"]
[Date "2024.02.20"]
[Round "3"]
[White "ProChessWICTH"]
[Black "lasRojas"]
[Result "0-1"]
[WhiteElo "2501"]
[BlackElo "2303"]
[TimeControl "180+1"]
[EndTime "8:30:58 PST"]
[Termination "lasRojas won by resignation"]

1. e4 {[%clk 0:03:00.9]} 1... c5 {[%clk 0:02:58.1]} 2. Nf3 {[%clk 0:03:01.1]}
2... e6 {[%clk 0:02:57]} 3. c3 {[%clk 0:02:59.3]} 3... Nf6 {[%clk 0:01:50]} 4.
e5 {[%clk 0:02:58.9]} 4... Nd5 {[%clk 0:01:50.5]} 5. d4 {[%clk 0:02:59.1]} 5...
cxd4 {[%clk 0:01:51.2]} 6. cxd4 {[%clk 0:03:00]} 6... b6 {[%clk 0:01:52]} 7. Nc3
{[%clk 0:02:58.7]} 7... Bb7 {[%clk 0:01:51.9]} 8. Bd3 {[%clk 0:02:57.6]} 8...
Bb4 {[%clk 0:01:51.6]} 9. Bd2 {[%clk 0:02:56.7]} 9... Nc6 {[%clk 0:01:51.1]} 10.
O-O {[%clk 0:02:56.4]} 10... Nce7 {[%clk 0:01:47.5]} 11. Ne4 {[%clk 0:02:40]}
11... Nf5 {[%clk 0:01:43.3]} 12. g4 {[%clk 0:02:00.6]} 12... Bxd2 {[%clk
0:01:04]} 13. Nfxd2 {[%clk 0:01:18.6]} 13... Nf4 {[%clk 0:00:52.2]} 14. gxf5
{[%clk 0:00:53.5]} 14... exf5 {[%clk 0:00:51.7]} 15. Qf3 {[%clk 0:00:25.9]}
15... fxe4 {[%clk 0:00:51.2]} 16. Qxf4 {[%clk 0:00:15.5]} 16... exd3 {[%clk
0:00:49.7]} 17. Nc4 {[%clk 0:00:12.1]} 17... O-O {[%clk 0:00:46]} 18. Nd6 {[%clk
0:00:12.7]} 18... Bd5 {[%clk 0:00:45.8]} 19. Rfd1 {[%clk 0:00:12.7]} 19... f6
{[%clk 0:00:43.6]} 20. Rxd3 {[%clk 0:00:12.7]} 20... fxe5 {[%clk 0:00:26.6]} 21.
Qxe5 {[%clk 0:00:13]} 21... Be6 {[%clk 0:00:19.3]} 22. Rg3 {[%clk 0:00:11.9]}
22... Qe7 {[%clk 0:00:19.7]} 23. Re1 {[%clk 0:00:09.8]} 23... Qf6 {[%clk
0:00:17.1]} 24. Qxf6 {[%clk 0:00:06.8]} 24... Rxf6 {[%clk 0:00:18]} 25. Kf1
{[%clk 0:00:03.5]} 25... Raf8 {[%clk 0:00:15.9]} 26. Re2 {[%clk 0:00:04.1]}
26... Rf4 {[%clk 0:00:14.1]} 27. Rd2 {[%clk 0:00:03.3]} 27... Rh4 {[%clk
0:00:12.6]} 28. Ke1 {[%clk 0:00:03.4]} 28... Rxh2 {[%clk 0:00:10.9]} 29. d5
{[%clk 0:00:03.9]} 29... Rh1+ {[%clk 0:00:11]} 30. Ke2 {[%clk 0:00:03.8]} 30...
Bf7 {[%clk 0:00:11]} 31. Nxf7 {[%clk 0:00:03.3]} 31... Rxf7 {[%clk 0:00:11.2]}
32. Rc3 {[%clk 0:00:03.2]} 32... Re7+ {[%clk 0:00:10.9]} 33. Kd3 {[%clk
0:00:03.5]} 33... Rh3+ {[%clk 0:00:11.4]} 34. Kc2 {[%clk 0:00:03.6]} 34... Rxc3+
{[%clk 0:00:12.3]} 35. Kxc3 {[%clk 0:00:04.2]} 35... d6 {[%clk 0:00:12]} 36. Kd4
{[%clk 0:00:04.6]} 36... Kf7 {[%clk 0:00:12.4]} 37. Rc2 {[%clk 0:00:04.9]} 37...
Ke8 {[%clk 0:00:10]} 38. Rc8+ {[%clk 0:00:04.7]} 38... Kf7 {[%clk 0:00:10.1]}
39. Rd8 {[%clk 0:00:03.8]} 39... Re2 {[%clk 0:00:09.4]} 40. Rxd6 {[%clk
0:00:04.1]} 40... Rxb2 {[%clk 0:00:08.9]} 41. Rd7+ {[%clk 0:00:04.5]} 41... Kf6
{[%clk 0:00:09.3]} 42. Rxa7 {[%clk 0:00:05.1]} 42... Rxf2 {[%clk 0:00:09.7]} 43.
Ra6 {[%clk 0:00:02.8]} 43... Rd2+ {[%clk 0:00:09.5]} 44. Kc4 {[%clk 0:00:02.8]}
44... Kf7 {[%clk 0:00:08.4]} 45. Rxb6 {[%clk 0:00:02.7]} 45... Rxa2 {[%clk
0:00:08.5]} 46. d6 {[%clk 0:00:03.1]} 46... Ra7 {[%clk 0:00:08.6]} 47. Kd5
{[%clk 0:00:03.3]} 47... h5 {[%clk 0:00:06]} 48. Kc6 {[%clk 0:00:03.7]} 48... h4
{[%clk 0:00:05.4]} 49. Rb4 {[%clk 0:00:02.4]} 49... Ra6+ {[%clk 0:00:05.3]} 50.
Kc7 {[%clk 0:00:03]} 50... Ke6 {[%clk 0:00:03.9]} 51. Re4+ {[%clk 0:00:01.3]}
51... Kd5 {[%clk 0:00:04.3]} 52. d7 {[%clk 0:00:01.6]} 52... Ra7+ {[%clk
0:00:04.6]} 53. Kc8 {[%clk 0:00:02.2]} 53... Rxd7 {[%clk 0:00:05.2]} 54. Rxh4
{[%clk 0:00:02.6]} 54... Rf7 {[%clk 0:00:05.5]} 55. Rg4 {[%clk 0:00:03.1]} 55...
Ke5 {[%clk 0:00:05.4]} 56. Kd8 {[%clk 0:00:03.3]} 56... Kf5 {[%clk 0:00:04.7]}
57. Rg1 {[%clk 0:00:04]} 57... g5 {[%clk 0:00:05.3]} 58. Ke8 {[%clk 0:00:03.9]}
58... Rf6 {[%clk 0:00:05.1]} 59. Ke7 {[%clk 0:00:04.3]} 59... Ra6 {[%clk
0:00:04.4]} 60. Rf1+ {[%clk 0:00:04.9]} 60... Kg4 {[%clk 0:00:04.6]} 61. Rg1+
{[%clk 0:00:04.6]} 61... Kf4 {[%clk 0:00:05.1]} 62. Rf1+ {[%clk 0:00:05.2]}
62... Kg4 {[%clk 0:00:05.4]} 63. Rg1+ {[%clk 0:00:05.5]} 63... Kf5 {[%clk
0:00:05.6]} 64. Rf1+ {[%clk 0:00:05.8]} 64... Kg6 {[%clk 0:00:06.1]} 65. Rg1
{[%clk 0:00:05.6]} 65... Rb6 {[%clk 0:00:05.7]} 66. Rg2 {[%clk 0:00:05.3]} 66...
Rb4 {[%clk 0:00:04.2]} 67. Ke6 {[%clk 0:00:04.4]} 67... Re4+ {[%clk 0:00:04.7]}
68. Kd6 {[%clk 0:00:03.8]} 68... Re8 {[%clk 0:00:05.3]} 69. Kd5 {[%clk
0:00:03.9]} 69... Kf5 {[%clk 0:00:05.1]} 70. Rf2+ {[%clk 0:00:03.9]} 70... Kg4
{[%clk 0:00:05.7]} 71. Rf1 {[%clk 0:00:03.7]} 71... Kg3 {[%clk 0:00:04.4]} 72.
Rg1+ {[%clk 0:00:03.9]} 72... Kf4 {[%clk 0:00:05]} 73. Rf1+ {[%clk 0:00:03.6]}
73... Kg4 {[%clk 0:00:05.4]} 74. Rg1+ {[%clk 0:00:04.2]} 74... Kf5 {[%clk
0:00:06]} 75. Kd4 {[%clk 0:00:04]} 75... g4 {[%clk 0:00:04.7]} 76. Rf1+ {[%clk
0:00:03.6]} 76... Kg5 {[%clk 0:00:05]} 77. Ra1 {[%clk 0:00:03.3]} 77... g3
{[%clk 0:00:04.8]} 78. Ra7 {[%clk 0:00:03.1]} 78... Kf4 {[%clk 0:00:04.7]} 79.
Rf7+ {[%clk 0:00:03.3]} 79... Kg4 {[%clk 0:00:05]} 80. Rg7+ {[%clk 0:00:03.8]}
80... Kf3 {[%clk 0:00:05.7]} 81. Kd3 {[%clk 0:00:03.2]} 81... g2 {[%clk
0:00:05.2]} 82. Rf7+ {[%clk 0:00:03.6]} 82... Kg3 {[%clk 0:00:05.4]} 83. Rg7+
{[%clk 0:00:04.2]} 83... Kf2 {[%clk 0:00:05.4]} 84. Rf7+ {[%clk 0:00:04.6]}
84... Kg1 {[%clk 0:00:02.8]} 85. Kd2 {[%clk 0:00:04.7]} 85... Kh2 {[%clk
0:00:02.4]} 86. Rh7+ {[%clk 0:00:04.7]} 86... Kg3 {[%clk 0:00:02.8]} 87. Rg7+
{[%clk 0:00:05.3]} 87... Kf2 {[%clk 0:00:03.1]} 88. Rf7+ {[%clk 0:00:05.6]}
88... Kg1 {[%clk 0:00:03.5]} 89. Rh7 {[%clk 0:00:05.5]} 89... Re4 {[%clk
0:00:03.5]} 90. Kd1 {[%clk 0:00:05.3]} 90... Kf2 {[%clk 0:00:03.7]} 91. Rf7+
{[%clk 0:00:04.9]} 91... Kg3 {[%clk 0:00:03.7]} 92. Rg7+ {[%clk 0:00:05.2]}
92... Rg4 {[%clk 0:00:03.9]} 93. Rxg4+ {[%clk 0:00:04.5]} 93... Kxg4 {[%clk
0:00:04.8]} 0-1